Workbook

Sheet WS3010
A1: Worksheet for Calculating :
A2: Aggregate Moisture Content, Combined % Passing #200 Sieve, and Water/Cementitious Ratio
A4: PROJECT DESCRIPTION | F4: GENERAL INFORMATION
A5: Project | D5: Contract | F5: Date | H5: Time
A7: Highway | D7: County | F7: Air Temp. | H7: Computed By:
A9: Description | F9: Weather
A11: Contractor | F11: Batch No. | H11: Batch Size
A14: Aggregate Laboratory Information | E14: Sampled Aggregate Information
H15: Washed
E16: Wet | F16: Dry | G16: Moisture | H16: Dry | I16: Passing
A17: Aggregate | B17: Source | C17: Laboratory | D17: Absorption | E17: Aggregate | F17: Aggregate | G17: Content | H17: Aggregate | I17: #200 Sieve
C18: Test | D18: % | E18: g | F18: g | G18: % | H18: g | I18: %
C19: Number | D19: (A) | E19: (B) | F19: (C) | G19: (D) | H19: (E) | I19: (F)
A22: Fine | G22: =IF(OR(E22="",F22=""),"",(E22-F22)/F22*100) ->  | I22: =IF(OR(F22="",H22=""),"",(F22-H22)/F22*100) -> 
A23: Coarse 1 | G23: =IF(OR(E23="",F23=""),"",(E23-F23)/F23*100) ->  | I23: =IF(OR(F23="",H23=""),"",(F23-H23)/F23*100) -> 
A24: Coarse 2 | G24: =IF(OR(E24="",F24=""),"",(E24-F24)/F24*100) ->  | I24: =IF(OR(F24="",H24=""),"",(F24-H24)/F24*100) -> 
A25: Coarse 3 | G25: =IF(OR(E25="",F25=""),"",(E25-F25)/F25*100) ->  | I25: =IF(OR(F25="",H25=""),"",(F25-H25)/F25*100) -> 
A27: Field Batch Information
A29: Water | E29: Aggregates
B30: Batch | F30: Batch | G30: Dry | H30: % of Total | I30: Net
B31: Quantity | E31: Material | F31: Quantity | G31: Weight | H31: Agg. Passing | I31: Water
B32: lb | F32: lb | G32: lb | H32: #200 Sieve | I32: lb
A33: Mix Water * | F33: (G) | G33: (H) | H33: (J) | I33: (L)
A35: Cementitious Material
B36: Batch | E36: Fine | G36: =IF(OR(G22="",F36=""),"",100*F36/(100+G22)) ->  | H36: =IF(OR(G36="",G$40="",I22=""),"",I22*G36/G$40) ->  | I36: =IF(OR(F36="",D22=""),"",F36*(G22-D22)/(100+G22)) -> 
A37: Material | B37: Quantity | E37: Coarse 1 | G37: =IF(OR(G23="",F37=""),"",100*F37/(100+G23)) ->  | H37: =IF(OR(G37="",G$40="",I23=""),"",I23*G37/G$40) ->  | I37: =IF(OR(F37="",D23=""),"",F37*(G23-D23)/(100+G23)) -> 
B38: lb | E38: Coarse 2 | G38: =IF(OR(G24="",F38=""),"",100*F38/(100+G24)) ->  | H38: =IF(OR(G38="",G$40="",I24=""),"",I24*G38/G$40) ->  | I38: =IF(OR(F38="",D24=""),"",F38*(G24-D24)/(100+G24)) -> 
A39: Cement | E39: Coarse 3 | G39: =IF(OR(G25="",F39=""),"",100*F39/(100+G25)) ->  | H39: =IF(OR(G39="",G$40="",I25=""),"",I25*G39/G$40) ->  | I39: =IF(OR(F39="",D25=""),"",F39*(G25-D25)/(100+G25)) -> 
A40: Fly Ash | E40: Total | F40: =IF(AND(F36="",F37="",F38="",F39=""),"",SUM(F36:F39)) ->  | G40: =IF(AND(G36="",G37="",G38="",G39=""),"",SUM(G36:G39)) ->  | H40: =IF(AND(H36="",H37="",H38="",H39=""),"",SUM(H36:H39)) ->  | I40: =IF(AND(I36="",I37="",I38="",I39=""),"",SUM(I36:I39)) -> 
A41: Slag | H41: Mix Water * | I41: =IF(B33="","",B33) -> 
A42: Total | B42: =IF(AND(B39="",B40="",B41=""),"",SUM(B39:B41)) ->  | H42: Total | I42: =IF(AND(I36="",I37="",I38="",I39="",I41=""),"",SUM(I40:I41)) -> 
A44: Admixtures
C45: Dosage | H45: Combined % Passing #200 = | I45: =H40 -> 
A46: Type | B46: Brand | C46: Rate
C47: oz/CY
A48: Air
A49: Entrainer | H49: Water/Cementitious Ratio (W/Cm) = | I49: =IF(OR(I42="",B42=""),"",I42/B42) -> 
A50: Water
A51: Reducer
B53: * | C53: Mix Water = Total water added to mix at the batch plant

Sheet Example
A1: WS3010 Worksheet for Calculating :
A2: Aggregate Moisture Content, Combined % Passing #200 Sieve, and Water/Cementitious Ratio
A4: PROJECT DESCRIPTION | F4: GENERAL INFORMATION
A5: Project | D5: Contract | F5: Date | H5: Time
A6: 1530-08-72 | D6: 9702219901 | F6: 1997-05-21 | H6: 09:00:00
A7: Highway | D7: County | F7: Air Temp. | H7: Computed By:
A8: STH 15 | D8: Dane | F8: 64 F
A9: Description | F9: Weather
A10: CTH A - CTH B | F10: Sunny & Windy
A11: Contractor | F11: Batch No. | H11: Batch Size
A12: XYZ Construction | F12: 227 | H12: 9 Cubic Yards
A14: Aggregate Laboratory Information | E14: Sampled Aggregate Information
H15: Washed
E16: Wet | F16: Dry | G16: Moisture | H16: Dry | I16: Passing
A17: Aggregate | B17: Source | C17: Laboratory | D17: Absorption | E17: Aggregate | F17: Aggregate | G17: Content | H17: Aggregate | I17: #200 Sieve
C18: Test | D18: % | E18: g | F18: g | G18: % | H18: g | I18: %
C19: Number | D19: (A) | E19: (B) | F19: (C) | G19: (D) | H19: (E) | I19: (F)
A22: Fine | B22: Sample 1 | C22: 456-87 | D22: 1.42 | E22: 527 | F22: 517 | G22: =IF(OR(E22="",F22=""),"",(E22-F22)/F22*100) -> 1.934235977 | H22: 505 | I22: =IF(OR(F22="",H22=""),"",(F22-H22)/F22*100) -> 2.321083172
A23: Coarse 1 | B23: Sample 2 | C23: 456-87 | D23: 1.16 | E23: 2582 | F23: 2551 | G23: =IF(OR(E23="",F23=""),"",(E23-F23)/F23*100) -> 1.215209722 | H23: 2508 | I23: =IF(OR(F23="",H23=""),"",(F23-H23)/F23*100) -> 1.685613485
A24: Coarse 2 | B24: Sample 3 | C24: 456-87 | D24: 1.09 | E24: 5163 | F24: 5117 | G24: =IF(OR(E24="",F24=""),"",(E24-F24)/F24*100) -> 0.8989642369 | H24: 5050 | I24: =IF(OR(F24="",H24=""),"",(F24-H24)/F24*100) -> 1.309360954
A25: Coarse 3 | G25: =IF(OR(E25="",F25=""),"",(E25-F25)/F25*100) ->  | I25: =IF(OR(F25="",H25=""),"",(F25-H25)/F25*100) -> 
A27: Field Batch Information
A29: Water | E29: Aggregates
B30: Batch | F30: Batch | G30: Dry | H30: % of Total | I30: Net
B31: Quantity | E31: Material | F31: Quantity | G31: Weight | H31: Agg. Passing | I31: Water
B32: lb | F32: lb | G32: lb | H32: #200 Sieve | I32: lb
A33: Mix Water * | B33: 2114 | F33: (G) | G33: (H) | H33: (J) | I33: (L)
A35: Cementitious Material
B36: Batch | E36: Fine | F36: 11204 | G36: =IF(OR(G22="",F36=""),"",100*F36/(100+G22)) -> 10991.40038 | H36: =IF(OR(G36="",G$40="",I22=""),"",I22*G36/G$40) -> 0.9224262361 | I36: =IF(OR(F36="",D22=""),"",F36*(G22-D22)/(100+G22)) -> 56.5217351
A37: Material | B37: Quantity | E37: Coarse 1 | F37: 10924 | G37: =IF(OR(G23="",F37=""),"",100*F37/(100+G23)) -> 10792.84431 | H37: =IF(OR(G37="",G$40="",I23=""),"",I23*G37/G$40) -> 0.6577817577 | I37: =IF(OR(F37="",D23=""),"",F37*(G23-D23)/(100+G23)) -> 5.958699303
B38: lb | E38: Coarse 2 | F38: 5926 | G38: =IF(OR(G24="",F38=""),"",100*F38/(100+G24)) -> 5873.202014 | H38: =IF(OR(G38="",G$40="",I24=""),"",I24*G38/G$40) -> 0.2780495783 | I38: =IF(OR(F38="",D24=""),"",F38*(G24-D24)/(100+G24)) -> -11.21991629
A39: Cement | B39: 4400 | E39: Coarse 3 | G39: =IF(OR(G25="",F39=""),"",100*F39/(100+G25)) ->  | H39: =IF(OR(G39="",G$40="",I25=""),"",I25*G39/G$40) ->  | I39: =IF(OR(F39="",D25=""),"",F39*(G25-D25)/(100+G25)) -> 
A40: Fly Ash | B40: 1000 | E40: Total | F40: =IF(AND(F36="",F37="",F38="",F39=""),"",SUM(F36:F39)) -> 28054 | G40: =IF(AND(G36="",G37="",G38="",G39=""),"",SUM(G36:G39)) -> 27657.4467 | H40: =IF(AND(H36="",H37="",H38="",H39=""),"",SUM(H36:H39)) -> 1.858257572 | I40: =IF(AND(I36="",I37="",I38="",I39=""),"",SUM(I36:I39)) -> 51.26051812
A41: Slag | H41: Mix Water * | I41: =IF(B33="","",B33) -> 2114
A42: Total | B42: =IF(AND(B39="",B40="",B41=""),"",SUM(B39:B41)) -> 5400 | H42: Total | I42: =IF(AND(I36="",I37="",I38="",I39="",I41=""),"",SUM(I40:I41)) -> 2165.260518
A44: Admixtures
C45: Dosage | H45: Combined % Passing #200 = | I45: =H40 -> 1.858257572
A46: Type | B46: Brand | C46: Rate
C47: oz/CY
A48: Air
A49: Entrainer | B49: Brand X | C49: 5 | H49: Water/Cementitious Ratio (W/Cm) = | I49: =IF(OR(I42="",B42=""),"",I42/B42) -> 0.40097417
A50: Water
A51: Reducer | B51: Brand Y | C51: 49
B53: * | C53: Mix Water = Total water added to mix at the batch plant
